fUST/lending_fUST_20240209
["ID","MTS","AMOUNT","RATE_DAILY","PERIOD"]
[313593024,1707427832136,-498.20434407,0.00017501,2]
[313593025,1707427832146,-158.81489119,0.00017501,2]
[313593027,1707427832155,-155.08840039,0.00017501,2]
[313593029,1707427832164,-387.68597736,0.00017501,2]
[313593030,1707427832173,-187.27631742,0.00017501,2]
[313593032,1707427832182,-873.68432579,0.00017501,2]
[313593035,1707427832193,-1118.37185619,0.00017501,2]
[313593135,1707427838207,-178.46876022,0.00017501,2]
[313593136,1707427838217,-175.72920133,0.00017501,2]
[313593137,1707427838226,-2122.03135075,0.00017501,2]
[313593233,1707427843200,-1158.72064682,0.00017501,2]
[313593253,1707427849044,-17678.43500385,0.00017501,2]
[313593254,1707427849054,-683.68279516,0.00017501,2]
[313593255,1707427849064,-238.06553773,0.00017502,2]
[313593256,1707427849074,-203.45656263,0.00017502,2]
[313593257,1707427849084,-539.83422761,0.00017502,2]
[313593258,1707427849094,-1298.41601991,0.00017502,2]
[313593261,1707427849103,-1857.19154588,0.00017502,2]
[313593264,1707427849113,-156.20476011,0.00017502,2]
[313593266,1707427849154,-1840.92871223,0.00017502,2]
[313593267,1707427849163,-454.37321419,0.00017533,2]
[313593268,1707427849173,-1330.18428289,0.00017544,2]
[313593269,1707427849182,-1500.0,0.00017546,3]
[313593270,1707427849191,-2152.05518595,0.00017547,2]
[313593271,1707427849201,-211.93049737,0.00017547,2]
[313593272,1707427849210,-201.30223844,0.00017547,2]
[313593273,1707427849219,-387.68597736,0.00017547,2]
[313593274,1707427849228,-6257.18333459,0.00017548,2]
[313593275,1707427849237,-35399.53806987,0.00017549,2]
[313593276,1707427849246,-582.77782568,0.0001755,2]
[313593277,1707427849255,-309.98915169,0.0001755,2]
[313593278,1707427849264,-10369.27178146,0.0001755,2]
[313593279,1707427849274,-17455.96193348,0.0001755,2]
[313593280,1707427849283,-672.33345472,0.00017553,2]
[313593281,1707427849292,-155.86282519,0.00017554,2]
[313593282,1707427849301,-587.25330893,0.00017556,2]
[313593283,1707427849310,-155.34509243,0.00017556,2]
[313593284,1707427849319,-357.77400353,0.00017556,2]
[313593285,1707427849328,-1000.0,0.00017556,3]
[313593286,1707427849337,-1000.0,0.00017556,3]
[313593287,1707427849347,-1000.0,0.00017556,3]
[313593288,1707427849356,-1000.0,0.00017556,3]
[313593289,1707427849366,-1000.0,0.00017556,3]
[313593290,1707427849375,-1000.0,0.00017556,3]
[313593291,1707427849384,-1000.0,0.00017556,3]
[313593292,1707427849393,-422.66718412,0.00017556,3]
[313593293,1707427849406,-124384.35433209,0.00017557,2]
[313593294,1707427849420,-151.0,0.00017557,2]
[313593295,1707427849434,-151.0,0.00017557,2]
[313593296,1707427849446,-151.0,0.00017557,2]
[313593297,1707427849457,-151.0,0.00017557,2]
[313593298,1707427849469,-151.0,0.00017557,2]
[313593299,1707427849482,-151.0,0.00017557,2]
[313593300,1707427849495,-151.0,0.00017557,2]
[313593301,1707427849508,-151.0,0.00017557,2]
[313593302,1707427849520,-151.0,0.00017557,2]
[313593303,1707427849534,-151.0,0.00017557,2]
[313593304,1707427849543,-151.0,0.00017557,2]
[313593305,1707427849556,-219.90588,0.00017557,2]
[313593306,1707427849570,-2110.10399171,0.00017697,2]
[313593307,1707427849582,-151.0,0.0001825,2]
[313593308,1707427849594,-230.78131672,0.000189,2]
[313593309,1707427849607,-151.0,0.00018944,2]
[313593310,1707427849621,-167.246797,0.00019178,2]
[313593311,1707427849632,-200.0,0.0001925,2]
[313593312,1707427849642,-434.51191744,0.0001945,2]
[313593313,1707427849656,-324.78849863,0.0001945,2]
[313593314,1707427849669,-363.79526877,0.0001945,2]
[313593315,1707427849681,-2605.0,0.0001962,2]
[313593316,1707427849694,-151.0,0.00019638,2]
[313593317,1707427849706,-324.06509508,0.0002,2]
[313593318,1707427849718,-151.0,0.00020333,2]
[313593319,1707427849730,-180.13496784,0.00020391,2]
[313593320,1707427849743,-1748.4047811,0.00021,2]
[313593321,1707427849758,-151.0,0.00021,2]
[313593322,1707427849771,-151.0,0.00021,2]
[313593323,1707427849783,-151.0,0.00021,2]
[313593324,1707427849796,-151.0,0.00021,2]
[313593325,1707427849807,-151.0,0.00021,2]
[313593326,1707427849817,-151.0,0.00021,2]
[313593327,1707427849827,-151.0,0.00021,2]
[313593328,1707427849841,-151.0,0.00021,2]
[313593329,1707427849853,-151.0,0.00021,2]
[313593330,1707427849866,-151.0,0.00021,2]
[313593331,1707427849877,-151.0,0.00021,2]
[313593332,1707427849889,-151.0,0.00021027,2]
[313593333,1707427849902,-280.0,0.00021175,7]
[313593334,1707427849913,-151.0,0.00021721,2]
[313593335,1707427849924,-166.666666,0.00021918,2]
[313593336,1707427849936,-151.0,0.00021998,2]
[313593337,1707427849947,-151.0,0.00021998,2]
[313593338,1707427849959,-151.0,0.00021998,2]
[313593339,1707427849970,-151.0,0.00021998,2]
[313593340,1707427849981,-151.0,0.00021998,2]
[313593341,1707427849993,-151.0,0.00021998,2]
[313593342,1707427850004,-151.0,0.00021998,2]
[313593343,1707427850015,-151.0,0.00021998,2]
[313593344,1707427850026,-151.0,0.00021998,2]
[313593345,1707427850037,-151.0,0.00021998,2]
[313593346,1707427850047,-151.0,0.00021998,2]
[313593347,1707427850058,-151.0,0.00021999,2]
[313593348,1707427850070,-151.0,0.00021999,2]
[313593349,1707427850081,-151.0,0.00021999,2]
[313593350,1707427850092,-151.0,0.00021999,2]
[313593351,1707427850103,-151.0,0.00021999,2]
[313593352,1707427850115,-151.0,0.00021999,2]
[313593353,1707427850126,-500.0,0.00021999,2]
[313593354,1707427850138,-511.41065011,0.00021999,2]
[313593355,1707427850149,-500.0,0.00021999,2]
[313593356,1707427850160,-500.0,0.00021999,2]
[313593357,1707427850171,-499.049988,0.00021999,2]
[313593358,1707427850182,-500.0,0.00021999,2]
[313593359,1707427850193,-500.0,0.00021999,2]
[313593360,1707427850204,-500.0,0.00021999,2]
[313593361,1707427850215,-500.0,0.00021999,2]
[313593362,1707427850226,-500.0,0.00021999,2]
[313593363,1707427850237,-500.0,0.00021999,2]
[313593364,1707427850248,-500.0,0.00021999,2]
[313593365,1707427850260,-500.0,0.00021999,2]
[313593366,1707427850271,-500.0,0.00021999,2]
[313593367,1707427850282,-500.0,0.00021999,2]
[313593368,1707427850294,-500.0,0.00021999,2]
[313593369,1707427850305,-500.0,0.00021999,2]
[313593370,1707427850316,-500.0,0.00021999,2]
[313593371,1707427850328,-500.0,0.00021999,2]
[313593372,1707427850339,-471.05643119,0.00021999,2]
[313593373,1707427850350,-500.0,0.00021999,2]
[313593374,1707427850363,-500.0,0.00021999,2]
[313593375,1707427850374,-500.0,0.00021999,2]
[313593376,1707427850512,-500.0,0.00021999,2]
[313593377,1707427850521,-379.7943741,0.00021999,2]
[313593378,1707427850683,-120.2056259,0.00021999,2]
[313593379,1707427850693,-500.0,0.00021999,2]
[313593380,1707427850703,-500.0,0.00021999,2]
[313593381,1707427850712,-500.0,0.00021999,2]
[313593382,1707427850721,-622.46470094,0.00021999,2]
[313593383,1707427850730,-500.0,0.00021999,2]
[313593384,1707427850741,-279.98718573,0.00021999,2]
[313593385,1707427850750,-305.32991113,0.00021999,2]
[313593386,1707427850764,-500.0,0.00021999,2]
[313593387,1707427850773,-500.0,0.00021999,2]
[313593388,1707427850783,-500.0,0.00021999,2]
[313593389,1707427850792,-236.23084364,0.00021999,2]
[313593390,1707427850802,-500.0,0.00021999,2]
[313593391,1707427850812,-500.0,0.00021999,2]
[313593392,1707427850821,-500.0,0.00021999,2]
[313593393,1707427850830,-590.04620419,0.00021999,2]
[313593394,1707427850840,-438.34130666,0.00021999,2]
[313593395,1707427850849,-500.0,0.00021999,2]
[313593396,1707427850859,-500.0,0.00021999,2]
[313593397,1707427850868,-500.0,0.00021999,2]
[313593398,1707427850878,-500.0,0.00021999,2]
[313593399,1707427850887,-500.0,0.00021999,2]
[313593400,1707427850896,-500.0,0.00021999,2]
[313593401,1707427850906,-500.0,0.00021999,2]
[313593402,1707427850915,-500.0,0.00021999,2]
[313593403,1707427850924,-500.0,0.00021999,2]
[313593404,1707427850933,-500.0,0.00021999,2]
[313593405,1707427850943,-500.0,0.00021999,2]
[313593406,1707427850952,-500.0,0.00021999,2]
[313593407,1707427850962,-500.0,0.00021999,2]
[313593408,1707427850971,-143.69449212,0.00021999,2]
[313593409,1707427852525,762.69774819,0.00015792,2]
[313593557,1707429032342,-454.37321419,0.00018861,2]
[313593559,1707429032352,-387.68597736,0.00018862,2]
[313593561,1707429032361,-175.72920133,0.00018863,2]
[313593562,1707429032370,-277.11423696,0.00019898,2]
[313593563,1707429032379,-324.06509508,0.00020174,2]
[313593564,1707429032388,-3108.11142311,0.00020175,2]
[313593581,1707429038488,-2475.84552579,0.00020175,2]
[313593582,1707429038501,-166.488178,0.00020229,2]
[313593583,1707429038510,-428.50000661,0.00021264,2]
[313593584,1707429038520,-166.666666,0.00021918,2]
[313593585,1707429038529,-588.69347829,0.00021998,2]
[313593586,1707429038541,-1036.96000463,0.00021998,2]
[313593587,1707429038550,-357.77400353,0.00021998,2]
[313593588,1707429038559,-155.33565524,0.00021998,2]
[313593589,1707429038568,-209.43355165,0.00021998,2]
[313593590,1707429038578,-531.46296318,0.00021998,2]
[313593598,1707429041751,-128.54441113,0.00021998,2]
[313593599,1707429041761,-155.23075961,0.00021998,2]
[313593600,1707429041770,-655.76867626,0.00021998,2]
[313593601,1707429041780,-293.81151229,0.00022,4]
[313593602,1707429041792,-427.31508471,0.00022,2]
[313593603,1707429041801,-7453.326588,0.00022,2]
[313593606,1707429043378,-256.17,0.00021999,2]
[313593607,1707429043391,-131.51597736,0.00021999,2]
[313593609,1707429043400,-213.61271916,0.00022,2]
[313593786,1707430232497,-640.48860722,0.00019042,2]
[313593788,1707430232507,-161.52708074,0.00019042,2]
[313593790,1707430232517,-243.85623125,0.00019042,2]
[313593791,1707430232526,-906.35745615,0.00019043,2]
[313593793,1707430232535,-1688.20558013,0.00019043,2]
[313593794,1707430232544,-155.07909034,0.00019044,2]
[313593796,1707430232553,-155.07909034,0.00019044,2]
[313593798,1707430232563,-387.68597736,0.00019045,2]
[313593801,1707430232572,-381.28003194,0.00019048,3]
[313593803,1707430232581,-581.84954358,0.000199,2]
[313593805,1707430232590,-749.63625143,0.00021,2]
[313593807,1707430232599,-200.0,0.00021064,2]
[313593809,1707430232608,-1309.79021087,0.000219,2]
[313593810,1707430232617,-166.666666,0.00021918,2]
[313593811,1707430232626,-207.12375917,0.00021999,2]
[313593812,1707430232634,-11864.01750238,0.00022,2]
[313593813,1707430232644,-1831.79022935,0.00022,2]
[313593814,1707430232653,-2091.03843255,0.00022,2]
[313593815,1707430232662,-300.0,0.00022,2]
[313593816,1707430232672,-199.9537868,0.0002274,2]
[313593817,1707430232681,-427.31508471,0.00022999,2]
[313593818,1707430232690,-313.80517935,0.00023,6]
[313593819,1707430232698,-153.0,0.00023,2]
[313593820,1707430232707,-153.0,0.00023,2]
[313593821,1707430232716,-199.9537868,0.00023,2]
[313593822,1707430232725,-153.0,0.00023,2]
[313593823,1707430232733,-199.9537868,0.00023,2]
[313593824,1707430232742,-1263.33437611,0.00023,2]
[313593825,1707430232751,-9969.58754808,0.00023077,2]
[313593826,1707430232761,-307.3855345,0.00023078,2]
[313593827,1707430232770,-153.4634771,0.00023078,2]
[313593828,1707430232778,-223.5144734,0.00023078,2]
[313593829,1707430232787,-199.9537868,0.00023078,2]
[313593830,1707430232795,-306.0,0.00023078,2]
[313593831,1707430232804,-207.7973928,0.00023078,2]
[313593832,1707430232813,-199.9537868,0.00023078,2]
[313593833,1707430232821,-153.0,0.00023078,2]
[313593834,1707430232830,-153.0,0.00023078,2]
[313593835,1707430232839,-153.0,0.00023078,2]
[313593836,1707430232848,-280.0,0.0002317,7]
[313593837,1707430232857,-166.666666,0.000232,2]
[313593838,1707430232866,-364.5569269,0.00023562,2]
[313593839,1707430232875,-1114.9970642,0.00023737,2]
[313593840,1707430232885,-14671.20692655,0.000239,2]
[313593841,1707430232894,-2863.76224872,0.00024,2]
[313593842,1707430232937,-1176.33876602,0.00024,2]
[313593843,1707430232946,-592.84209843,0.00024436,2]
[313593844,1707430232955,-1063.78990432,0.00024437,2]
[313593845,1707430232965,-166.666666,0.00024482,2]
[313593846,1707430232974,-1309.79021083,0.00024843,2]
[313593847,1707430232983,-581.84954358,0.000249,2]
[313593848,1707430232992,-310.99959369,0.0002496,5]
[313593849,1707430233000,-151.0,0.0002499,2]
[313593850,1707430233010,-151.0,0.0002499,2]
[313593851,1707430233018,-5557.25402371,0.00025,2]
[313593852,1707430233027,-5413.53429238,0.00025,2]
[313593853,1707430233039,-913.24441973,0.00025,2]
[313593931,1707430238558,-1745.88499104,0.00019041,2]
[313593932,1707430238567,-1263.33437611,0.00023076,2]
[313593933,1707430238577,-1080.65270314,0.00025,2]
[313593934,1707430238586,-151.0,0.00025,2]
[313593935,1707430238595,-203.464491,0.00025205,2]
[313593937,1707430238604,-302.535509,0.00025205,2]
[313593938,1707430238614,-153.0,0.00025205,2]
[313593939,1707430238623,-271.64220638,0.00025293,2]
[313593940,1707430238632,-310.0666644,0.00025293,2]
[313593941,1707430238642,-517.22300754,0.00025293,2]
[313593942,1707430238651,-310.0558097,0.00025293,2]
[313593943,1707430238660,-151.0,0.00025293,2]
[313593944,1707430238669,-151.0,0.00025293,2]
[313593945,1707430238678,-151.0,0.00025293,2]
[313593946,1707430238687,-151.0,0.00025293,2]
[313593947,1707430238696,-521.0,0.00025294,2]
[313593948,1707430238706,-310.02325349,0.00025294,2]
[313593949,1707430238715,-4867.0879113,0.00025294,2]
[313593950,1707430238728,-2270.75786189,0.00025294,2]
[313593951,1707430238741,-2142.51122843,0.00025294,2]
[313593952,1707430238749,-151.0,0.00025294,2]
[313593953,1707430238761,-1859.33573199,0.00025295,2]
[313593954,1707430238770,-502.53794574,0.00025295,2]
[313593955,1707430238780,-151.0,0.00025295,2]
[313593956,1707430238789,-193.07938456,0.00025296,2]
[313593957,1707430238798,-2044.28504665,0.00025296,2]
[313593958,1707430238807,-1640.46942817,0.00025297,2]
[313593959,1707430238816,-151.0,0.00025297,2]
[313593960,1707430238825,-151.0,0.00025297,2]
[313593961,1707430238834,-151.0,0.00025297,2]
[313593962,1707430238844,-391.0,0.00025487,7]
[313593963,1707430238854,-642.18949522,0.00025659,2]
[313593964,1707430238863,-739.78365226,0.00025711,2]
[313593965,1707430238872,-609.08979656,0.00025711,2]
[313593966,1707430238881,-167.14961862,0.00025711,2]
[313593967,1707430238891,-838.81206769,0.00025711,2]
[313593968,1707430238900,-213.46268132,0.00025711,2]
[313593969,1707430238909,-500.0,0.00025712,2]
[313593970,1707430238919,-1238.11158306,0.00025712,2]
[313593971,1707430238928,-357.77400353,0.00025798,2]
[313593972,1707430238937,-569.51350981,0.00025799,3]
[313593973,1707430238947,-4547.61624405,0.000258,2]
[313593974,1707430238956,-151.0,0.000258,2]
[313593975,1707430238965,-151.0,0.00025845,2]
[313593976,1707430238974,-280.5209617,0.00026,2]
[313593977,1707430238983,-229.91590689,0.00026,2]
[313593978,1707430238992,-9819.62,0.00026164,3]
[313593979,1707430239002,-57785.99261919,0.00026174,2]
[313594000,1707430246570,-300.0,0.00022,2]
[313594001,1707430246579,-578.0,0.000255,2]
[313594002,1707430246588,-640.48860722,0.00026172,2]
[313594003,1707430246598,-426.30531238,0.00026173,2]
[313594004,1707430246607,-906.78795268,0.00026173,2]
[313594005,1707430246616,-155.07909034,0.00026173,2]
[313594006,1707430246625,-387.68597736,0.00026173,2]
[313594007,1707430246634,-195.17063579,0.00026173,2]
[313594008,1707430246643,-201.69596787,0.00026173,2]
[313594009,1707430246652,-4427.12966154,0.00026174,2]
[313594066,1707431431658,-351.10475835,0.00022,2]
[313594067,1707431431668,-1906.93556511,0.00022,2]
[313594068,1707431431677,-155.07909034,0.0002203,4]
[313594069,1707431431686,-166.666666,0.00022665,2]
[313594070,1707431431695,-1263.33437611,0.00023,2]
[313594071,1707431431705,-7294.79282993,0.00023,2]
[313594072,1707431431718,-1914.68161629,0.00023,2]
[313594095,1707431437764,-760.11310186,0.00023,2]
[313594097,1707431437774,-12396.70623533,0.00023414,2]
[313594141,1707431441029,-4103.72258304,0.00023414,2]
[313594169,1707431444192,-4774.62350829,0.00023414,2]
[313594192,1707431445809,-383.62238978,0.00023414,2]
[313594193,1707431445823,-1360.34124795,0.00023414,2]
[313594194,1707431445837,-1880.98403561,0.00023414,2]
[313594195,1707431445847,-1023.28808853,0.000239,2]
[313594196,1707431445858,-592.84209843,0.00024,2]
[313594197,1707431445867,-299.43746347,0.00024074,2]
[313594198,1707431445877,-1354.04249289,0.00024478,2]
[313594199,1707431445886,-1859.71951506,0.00024479,2]
[313594200,1707431445895,-4950.71266785,0.00024989,3]
[313594201,1707431445906,-351.10475835,0.00024989,3]
[313594202,1707431445929,-3991.35859978,0.00024989,3]
[313594205,1707431552672,2802.95,0.000175,2]
[313594265,1707432631914,-387.68597736,0.00021241,2]
[313594267,1707432631925,-250.0,0.00021242,2]
[313594269,1707432631937,-895.37707742,0.00021446,2]
[313594270,1707432631946,-3606.5177937,0.0002154,2]
[313594313,1707432637970,-18114.1976532,0.0002154,2]
[313594314,1707432637980,-168.591889,0.00021546,2]
[313594316,1707432637989,-166.666666,0.00021918,2]
[313594317,1707432637998,-294.12405739,0.00022,4]
[313594318,1707432638007,-3961.99,0.00022869,3]
[313594319,1707432638017,-50000.0,0.00022879,2]
[313594320,1707432638026,-199.62497565,0.00022889,2]
[313594321,1707432638035,-1263.33437611,0.00023,2]
[313594322,1707432638045,-3020.3832294,0.00023413,2]
[313594323,1707432638057,-220.00845369,0.00023413,2]
[313594324,1707432638069,-200.0,0.00023693,7]
[313594325,1707432638079,-1101.61498494,0.00023754,2]
[313594327,1707432638090,-3498.19003219,0.00023754,2]
[313594328,1707432638102,-260.29428997,0.00023754,2]
[313594330,1707432638114,-28261.10386827,0.00023754,2]
[313594332,1707432638125,-3394.13747549,0.00023754,2]
[313594334,1707432638136,-357.62281226,0.00023754,2]
[313594336,1707432638148,-3126.45854689,0.00023754,2]
[313594362,1707432643378,-4532.9,0.00023754,2]
[313594451,1707433186013,464.59,0.00029,30]
[313594652,1707433838201,-535.50901674,0.00020358,2]
[313594654,1707433838211,-387.68597736,0.00020359,2]
[313594656,1707433838220,-155.05892239,0.0002036,2]
[313594658,1707433838229,-609.78077647,0.0002036,2]
[313594660,1707433838238,-625.8157799,0.00020361,2]
[313594661,1707433838247,-171.0131344,0.00020667,2]
[313594663,1707433838256,-155.40765533,0.00020734,2]
[313594665,1707433838265,-9392.97703689,0.00020734,2]
[313594666,1707433838274,-1745.88499104,0.00020735,2]
[313594668,1707433838283,-715.4821902,0.0002074,2]
[313594669,1707433838292,-247.567337,0.00020745,2]
[313594670,1707433838301,-1434.09189254,0.00021772,2]
[313594672,1707433838310,-1297.44316792,0.00021772,2]
[313594673,1707433838320,-155.29678995,0.00021773,2]
[313594675,1707433838329,-50000.0,0.00021774,2]
[313594676,1707433838338,-7555.26,0.0002258,3]
[313594678,1707433838347,-7447.27682052,0.0002259,2]
[313594679,1707433838356,-288.88906706,0.00023639,2]
[313594681,1707433838366,-7619.67581694,0.000237,2]
[313594690,1707433841319,-3644.44823644,0.000237,2]
[313594691,1707433841328,-621.16559161,0.00023739,2]
[313594692,1707433841338,-500.0,0.0002374,2]
[313594693,1707433841348,-4123.36592787,0.00023741,2]
[313594694,1707433841374,-16082.26367643,0.00023741,2]
[313594695,1707433841386,-745.74523997,0.00023741,2]
[313594696,1707433841398,-6296.05,0.00023742,3]
[313594697,1707433841407,-3238.15476003,0.00023743,2]
[313594698,1707433841419,-4807.39124484,0.00023743,2]
[313594703,1707433844495,-500.0,0.00023743,2]
[313594718,1707433846213,-931.91831216,0.00023743,2]
[313594818,1707435032286,-640.48860722,0.00021345,2]
[313594820,1707435032296,-387.68597736,0.00021346,2]
[313594821,1707435032305,-609.78077647,0.00021347,2]
[313594822,1707435032314,-1114.9970642,0.00021367,2]
[313594823,1707435032325,-166.666666,0.00022292,2]
[313594824,1707435032334,-670.26036729,0.00023641,2]
[313594826,1707435032344,-803.49461854,0.00023643,2]
[313594829,1707435032353,-269.74543036,0.00023741,2]
[313594830,1707435032363,-2713.33051082,0.00023741,5]
[313594833,1707435032373,-155.40765533,0.00023742,2]
[313594835,1707435032382,-6131.44083832,0.00023742,2]
[313594837,1707435032391,-27736.93352593,0.00023743,2]
[313594838,1707435032401,-2732.88603195,0.00023743,2]
[313594841,1707435032411,-155.05892239,0.00023743,2]
[313594843,1707435032420,-1831.79022935,0.00023743,2]
[313594845,1707435032429,-300.0,0.00023743,2]
[313594847,1707435032438,-2606.4717958,0.00023751,2]
[313594849,1707435032447,-161.52708074,0.00023751,2]
[313594850,1707435032456,-2467.49018674,0.00023752,2]
[313594853,1707435032466,-523.68160801,0.00023752,2]
[313594855,1707435032476,-155.05426899,0.00023752,4]
[313594857,1707435032485,-1757.99241626,0.00023752,3]
[313594859,1707435032494,-155.05892239,0.00023752,2]
[313594861,1707435032503,-500.0,0.00023752,2]
[313594863,1707435032512,-175.72920133,0.00023752,2]
[313594864,1707435032521,-236.24925679,0.00023752,2]
[313594866,1707435032531,-199.77831197,0.00023753,2]
[313594869,1707435032540,-3331.11583039,0.00023753,2]
[313594870,1707435032549,-1947.3753187,0.00023753,2]
[313594871,1707435032559,-5467.67798999,0.00023754,2]
[313594872,1707435032568,-592.84209843,0.00024,2]
[313594873,1707435032578,-1195.29551701,0.00024,2]
[313594978,1707435039090,-500.0,0.00024,2]
[313595011,1707435041614,-1168.46673171,0.00024,2]
[313595013,1707435041623,-17.12246712,0.0002411,2]
[313595015,1707435041637,-350.81300148,0.0002411,2]
[313595017,1707435041646,-231.11125364,0.00024215,2]
[313595019,1707435041655,-2309.73,0.00024254,3]
[313595021,1707435041664,-2771.68,0.00024264,3]
[313595023,1707435041673,-196.91321948,0.00024274,3]
[313595025,1707435041684,-3129.10678052,0.00024274,3]
[313595027,1707435041694,-3991.22,0.00024284,3]
[313595029,1707435041702,-4789.47,0.00024294,3]
[313595031,1707435041712,-37.80593668,0.00024304,3]
[313595668,1707436239899,-290.81876086,0.00021882,2]
[313595689,1707436241759,-1000.04093527,0.00021882,2]
[313595690,1707436241770,-387.68597736,0.00021883,2]
[313595691,1707436241779,-8845.03777146,0.00021893,2]
[313595692,1707436241791,-305.75,0.00021893,2]
[313595693,1707436241803,-362.68449822,0.00021893,2]
[313595696,1707436241930,-403.5335302,0.00021893,2]
[313595697,1707436241942,-5117.8928232,0.00021893,2]
[313595698,1707436241953,-5204.81790322,0.00021893,2]
[313595699,1707436241965,-487.5164698,0.00021893,2]
[313595700,1707436241976,-1361.51496361,0.00021893,2]
[313595714,1707436400399,10000.0,0.000175,2]
[313595715,1707436407384,10000.0,0.000175,2]
[313595716,1707436413734,10000.0,0.000175,2]
[313595718,1707436419739,10000.0,0.000175,2]
[313595719,1707436426653,10000.0,0.000175,2]
[313595720,1707436434252,10000.0,0.000175,2]
[313595721,1707436441017,10000.0,0.000175,2]
[313595722,1707436447392,10000.0,0.000175,2]
[313595725,1707436459103,10000.0,0.000175,2]
[313595726,1707436461342,622.58144826,0.000175,2]
[313595728,1707436467441,10000.0,0.000175,2]
[313595729,1707436474744,654.36928559,0.000175,2]
[313595930,1707437434302,-387.68597736,0.00020235,2]
[313595931,1707437434311,-51.87902264,0.00020236,2]
[313595932,1707437434323,-1238.98067349,0.00020236,2]
[313595933,1707437434331,-2038.61488823,0.00020236,2]
[313595934,1707437434343,-324.21963533,0.00020236,2]
[313596011,1707437441868,-356.87942002,0.00020236,2]
[313596012,1707437441878,-535.50901674,0.00020237,2]
[313596013,1707437441888,-4495.75258545,0.00020239,2]
[313596014,1707437441898,-167.633153,0.00020249,2]
[313596015,1707437441907,-6032.3628187,0.00020773,2]
[313596016,1707437441917,-685.67696919,0.00021672,2]
[313596029,1707437446683,-640.48860722,0.00020235,2]
[313596030,1707437446693,-5945.47941095,0.00021672,2]
[313596031,1707437446703,-1575.3584482,0.00021672,2]
[313596032,1707437446712,-413.20411191,0.00021793,2]
[313596033,1707437446721,-2524.23,0.00021883,3]
[313596034,1707437446730,-558.95369322,0.0002189,2]
[313596035,1707437446739,-156.16974077,0.00021891,2]
[313596036,1707437446749,-180.00091503,0.00021891,2]
[313596037,1707437446758,-500.0,0.00021891,2]
[313596038,1707437446767,-155.32972216,0.00021891,2]
[313596039,1707437446775,-562.41090453,0.00021891,2]
[313596040,1707437446785,-309.98450155,0.00021891,2]
[313596041,1707437446795,-4101.69550357,0.00021891,2]
[313596042,1707437446806,-2733.35859069,0.00021891,2]
[313596415,1707439832019,-535.50901674,0.00021652,2]
[313596417,1707439832031,-155.0480649,0.00021653,2]
[313596419,1707439832041,-446.58645557,0.00021654,3]
[313596422,1707439832052,-1311.40596069,0.00021654,3]
[313596424,1707439832061,-1290.85969613,0.00021655,2]
[313596426,1707439832070,-4495.75258545,0.00021656,2]
[313596428,1707439832079,-3331.11583039,0.00021671,2]
[313596430,1707439832088,-724.14577962,0.00021791,2]
[313596432,1707439832097,-330.56328952,0.00021793,2]
[313596434,1707439832107,-2152.07,0.00021882,3]
[313596436,1707439832117,-1793.4,0.00021882,3]
[313596438,1707439832126,-1494.5,0.00021882,3]
[313596440,1707439832135,-2582.49,0.00021883,3]
[313596442,1707439832144,-431.63932593,0.00021889,2]
[313596444,1707439832153,-808.15134686,0.0002189,2]
[313596446,1707439832162,-306.281989,0.0002189,2]
[313596448,1707439832171,-199.77831197,0.0002189,2]
[313596450,1707439832180,-155.06215212,0.0002189,2]
[313596452,1707439832189,-1947.3753187,0.0002189,2]
[313596454,1707439832198,-2467.49018674,0.0002189,2]
[313596456,1707439832207,-9682.57005779,0.00021891,2]
[313596458,1707439832216,-310.03720446,0.00021891,2]
[313596460,1707439832225,-156.00287086,0.00021891,2]
[313596461,1707439832234,-589.25511733,0.00021891,2]
[313596463,1707439832243,-309.93489492,0.00021891,2]
[313596466,1707439832262,-300.0,0.00021891,2]
[313596469,1707439832274,-1831.79022935,0.00021891,2]
[313596471,1707439832284,-151.0,0.00021891,2]